fUSD/lending_fUSD_20241227
["ID","MTS","AMOUNT","RATE_DAILY","PERIOD"]
[346863903,1735333838624,-517.79,0.00010466,2]
[346863904,1735333838634,-475.61952527,0.00010466,2]
[346863905,1735333838643,-500.0,0.00010466,2]
[346863906,1735333838652,-599.44,0.00010466,2]
[346863907,1735333838662,-500.0,0.00010466,2]
[346863908,1735333838671,-718.88,0.00010466,2]
[346863909,1735333838680,-500.0,0.00010466,2]
[346863910,1735333838690,-500.0,0.00010466,2]
[346863911,1735333838699,-500.0,0.00010466,2]
[346863912,1735333838709,-648.43,0.00010466,2]
[346863913,1735333838719,-607.26,0.00010466,2]
[346863914,1735333838729,-1124.7,0.00010466,2]
[346863915,1735333838738,-500.0,0.00010466,2]
[346863916,1735333838747,-500.0,0.00010466,2]
[346863917,1735333838756,-500.0,0.00010466,2]
[346863918,1735333838765,-500.0,0.00010466,2]
[346863919,1735333838775,-3070.42,0.00010466,2]
[346863920,1735333838784,-585.71122634,0.00010466,2]
[346863921,1735333838793,-811.03,0.00010466,2]
[346863922,1735333838803,-500.0,0.00010466,2]
[346863923,1735333838812,-500.0,0.00010466,2]
[346863924,1735333838823,-500.0,0.00010466,2]
[346863925,1735333838832,-632.02,0.00010466,2]
[346863926,1735333838841,-935.05,0.00010466,2]
[346863927,1735333838851,-500.0,0.00010466,2]
[346863928,1735333838861,-2736.99,0.00010466,2]
[346863929,1735333838871,-1026.44,0.00010466,2]
[346863930,1735333838880,-663.98,0.00010466,2]
[346863931,1735333838890,-500.0,0.00010466,2]
[346863932,1735333838899,-500.0,0.00010466,2]
[346863933,1735333838910,-1944.05,0.00010466,2]
[346863934,1735333838919,-616.69,0.00010466,2]
[346863935,1735333838929,-747.92,0.00010466,2]
[346863936,1735333838938,-500.0,0.00010466,2]
[346863937,1735333838948,-2028.34,0.00010466,2]
[346863938,1735333838958,-500.0,0.00010466,2]
[346863939,1735333838967,-500.0,0.00010466,2]
[346863940,1735333838977,-1190.81,0.00010466,2]
[346863941,1735333838987,-2239.97,0.00010466,2]
[346863942,1735333838996,-829.67,0.00010466,2]
[346863943,1735333839006,-1063.41,0.00010466,2]
[346863944,1735333839015,-151.0,0.00010466,2]
[346863945,1735333839024,-530.33,0.00010466,2]
[346863946,1735333839034,-881.97,0.00010466,2]
[346863947,1735333839043,-500.0,0.00010466,2]
[346863948,1735333839053,-1298.28,0.00010466,2]
[346863949,1735333839062,-8748.81,0.00010466,2]
[346863950,1735333839073,-525.86,0.00010466,2]
[346863951,1735333839083,-1429.56,0.00010466,2]
[346863952,1735333839092,-500.0,0.00010466,2]
[346863953,1735333839102,-1352.53,0.00010466,2]
[346863954,1735333839111,-500.0,0.00010466,2]
[346863955,1735333839121,-857.26,0.00010466,2]
[346863956,1735333839131,-2217.82,0.00010466,2]
[346863957,1735333839142,-500.0,0.00010466,2]
[346863958,1735333839151,-500.0,0.00010466,2]
[346863959,1735333839161,-603.97,0.00010466,2]
[346863960,1735333839173,-500.0,0.00010466,2]
[346863961,1735333839183,-15709.35,0.00010466,2]
[346863962,1735333839194,-4548.05,0.00010466,2]
[346863963,1735333839204,-591.79,0.00010466,2]
[346863964,1735333839214,-507.95,0.00010466,2]
[346863965,1735333839224,-500.0,0.00010466,2]
[346863966,1735333839233,-500.0,0.00010466,2]
[346863967,1735333839246,-5768.76,0.00010466,2]
[346863968,1735333839255,-500.0,0.00010466,2]
[346863969,1735333839265,-719.8,0.00010466,2]
[346863970,1735333839276,-2361.39,0.00010466,2]
[346863971,1735333839286,-500.0,0.00010466,2]
[346863972,1735333839296,-500.0,0.00010466,2]
[346863973,1735333839306,-500.0,0.00010466,2]
[346863974,1735333839315,-668.59,0.00010466,2]
[346863975,1735333839324,-757.87,0.00010466,2]
[346863976,1735333839334,-648.48,0.00010466,2]
[346863977,1735333839343,-714.96,0.00010466,2]
[346863978,1735333839352,-858.01,0.00010466,2]
[346863979,1735333839362,-641.35,0.00010466,2]
[346863980,1735333839371,-1372.74,0.00010466,2]
[346863981,1735333839380,-500.0,0.00010466,2]
[346863982,1735333839390,-500.0,0.00010466,2]
[346863983,1735333839399,-2181.08,0.00010466,2]
[346863984,1735333839409,-771.22,0.00010466,2]
[346863985,1735333839418,-894.81,0.00010466,2]
[346863986,1735333839428,-500.0,0.00010466,2]
[346863987,1735333839438,-500.0,0.00010466,2]
[346863988,1735333839447,-617.83430363,0.00010466,2]
[346863989,1735333839457,-500.0,0.00010466,2]
[346863990,1735333839467,-500.0,0.00010466,2]
[346863991,1735333839476,-500.0,0.00010466,2]
[346863992,1735333839485,-500.0,0.00010466,2]
[346863994,1735333839495,-500.0,0.00010466,2]
[346863996,1735333839505,-500.0,0.00010466,2]
[346863998,1735333839514,-500.0,0.00010466,2]
[346863999,1735333839524,-773.29,0.00010466,2]
[346864000,1735333839535,-1112.44,0.00010466,2]
[346864001,1735333839544,-500.0,0.00010466,2]
[346864003,1735333839554,-500.0,0.00010466,2]
[346864004,1735333839564,-787.37,0.00010466,2]
[346864005,1735333839574,-151.0,0.00010466,2]
[346864007,1735333839584,-787.83,0.00010466,2]
[346864008,1735333839593,-727.34,0.00010466,2]
[346864009,1735333839602,-3143.51,0.00010466,2]
[346864011,1735333839611,-2359.1,0.00010466,2]
[346864012,1735333839621,-682.48,0.00010466,2]
[346864013,1735333839631,-500.0,0.00010466,2]
[346864014,1735333839640,-500.0,0.00010466,2]
[346864016,1735333839650,-500.0,0.00010466,2]
[346864017,1735333839659,-1258.73,0.00010466,2]
[346864018,1735333839669,-505.2129984,0.00010466,2]
[346864019,1735333839678,-500.0,0.00010466,2]
[346864020,1735333839687,-624.08989358,0.00010466,2]
[346864021,1735333839697,-585.55,0.00010466,2]
[346864022,1735333839706,-500.0,0.00010466,2]
[346864023,1735333839715,-500.0,0.00010466,2]
[346864029,1735333839971,-989.3,0.00010466,2]
[346864031,1735333839981,-1131.57,0.00010466,2]
[346864032,1735333839990,-500.0,0.00010466,2]
[346864033,1735333840000,-500.0,0.00010466,2]
[346864034,1735333840009,-5399.73,0.00010466,2]
[346864035,1735333840019,-500.0,0.00010466,2]
[346864036,1735333840029,-500.0,0.00010466,2]
[346864037,1735333840039,-2452.09,0.00010466,2]
[346864038,1735333840049,-1415.29,0.00010466,2]
[346864039,1735333840058,-728.4,0.00010466,2]
[346864040,1735333840068,-1093.71,0.00010466,2]
[346864041,1735333840077,-784.92,0.00010466,2]
[346864042,1735333840087,-500.0,0.00010466,2]
[346864043,1735333840096,-1253.96,0.00010466,2]
[346864044,1735333840106,-1254.53,0.00010466,2]
[346864045,1735333840116,-701.43,0.00010466,2]
[346864046,1735333840126,-500.0,0.00010466,2]
[346864047,1735333840136,-938.8,0.00010466,2]
[346864048,1735333840146,-500.0,0.00010466,2]
[346864049,1735333840155,-654.84,0.00010466,2]
[346864050,1735333840165,-500.0,0.00010466,2]
[346864051,1735333840174,-500.0,0.00010466,2]
[346864052,1735333840184,-652.08,0.00010466,2]
[346864053,1735333840196,-500.0,0.00010466,2]
[346864054,1735333840205,-705.42,0.00010466,2]
[346864055,1735333840215,-948.15,0.00010466,2]
[346864056,1735333840224,-500.0,0.00010466,2]
[346864057,1735333840235,-1383.1,0.00010466,2]
[346864058,1735333840245,-737.92,0.00010466,2]
[346864059,1735333840255,-1370.2,0.00010466,2]
[346864060,1735333840264,-237.79353598,0.00010466,2]
[346864061,1735333840274,-500.0,0.00010466,2]
[346864062,1735333840283,-500.0,0.00010466,2]
[346864063,1735333840293,-13110.98,0.00010466,2]
[346864064,1735333840303,-514.33,0.00010466,2]
[346864065,1735333840312,-684.42,0.00010466,2]
[346864066,1735333840322,-500.0,0.00010466,2]
[346864067,1735333840331,-500.0,0.00010466,2]
[346864068,1735333840341,-648.55,0.00010466,2]
[346864069,1735333840350,-899.1,0.00010466,2]
[346864070,1735333840360,-532.82,0.00010466,2]
[346864071,1735333840369,-500.0,0.00010466,2]
[346864072,1735333840378,-500.0,0.00010466,2]
[346864073,1735333840388,-779.98,0.00010466,2]
[346864074,1735333840398,-500.0,0.00010466,2]
[346864075,1735333840407,-1420.37,0.00010466,2]
[346864076,1735333840416,-500.0,0.00010466,2]
[346864077,1735333840427,-500.0,0.00010466,2]
[346864078,1735333840437,-585.3,0.00010466,2]
[346864079,1735333840446,-654.16,0.00010466,2]
[346864080,1735333840456,-553.26,0.00010466,2]
[346864081,1735333840466,-825.73,0.00010466,2]
[346864082,1735333840476,-505.28180807,0.00010467,2]
[346864083,1735333840485,-469.9491991,0.00010467,2]
[346864084,1735333840495,-500.0,0.00010467,2]
[346864085,1735333840504,-500.0,0.00010467,2]
[346864087,1735333840514,-507.64528435,0.00010467,2]
[346864089,1735333840524,-500.0,0.00010467,2]
[346864091,1735333840533,-546.45,0.00010467,2]
[346864092,1735333840543,-500.0,0.00010467,2]
[346864093,1735333840552,-695.62,0.00010467,2]
[346864094,1735333840561,-500.0,0.00010467,2]
[346864095,1735333840570,-500.0,0.00010467,2]
[346864096,1735333840580,-500.0,0.00010467,2]
[346864097,1735333840590,-500.0,0.00010467,2]
[346864098,1735333840600,-500.0,0.00010467,2]
[346864099,1735333840609,-500.0,0.00010467,2]
[346864100,1735333840619,-500.0,0.00010467,2]
[346864101,1735333840629,-500.0,0.00010467,2]
[346864102,1735333840638,-500.0,0.00010467,2]
[346864103,1735333840648,-500.0,0.00010467,2]
[346864104,1735333840657,-500.0,0.00010467,2]
[346864105,1735333840667,-590.66,0.00010467,2]
[346864106,1735333840677,-500.0,0.00010467,2]
[346864107,1735333840686,-500.0,0.00010467,2]
[346864108,1735333840696,-500.0,0.00010467,2]
[346864109,1735333840705,-500.0,0.00010467,2]
[346864110,1735333840715,-837.83,0.00010467,2]
[346864111,1735333840725,-500.0,0.00010467,2]
[346864112,1735333840735,-500.0,0.00010467,2]
[346864113,1735333840744,-500.0,0.00010467,2]
[346864114,1735333840753,-501.65,0.00010467,2]
[346864115,1735333840763,-540.22,0.00010467,2]
[346864116,1735333840773,-645.82337197,0.00010467,2]
[346864117,1735333840782,-500.0,0.00010467,2]
[346864118,1735333840792,-501.06,0.00010467,2]
[346864119,1735333840801,-500.0,0.00010467,2]
[346864120,1735333840811,-500.0,0.00010467,2]
[346864121,1735333840821,-209.26437011,0.00010467,2]
[346864122,1735333840830,-500.0,0.00010467,2]
[346864123,1735333840839,-500.0,0.00010467,2]
[346864124,1735333840848,-500.0,0.00010467,2]
[346864125,1735333840858,-500.0,0.00010467,2]
[346864126,1735333840867,-500.0,0.00010467,2]
[346864127,1735333840876,-421.5017561,0.00010467,2]
[346864128,1735333840885,-500.0,0.00010467,2]
[346864129,1735333840895,-642.7651156,0.00010467,2]
[346864130,1735333840904,-574.12,0.00010467,2]
[346864131,1735333840913,-1503.88,0.00010467,2]
[346864132,1735333840922,-500.0,0.00010467,2]
[346864133,1735333840933,-500.0,0.00010467,2]
[346864134,1735333840943,-635.1,0.00010467,2]
[346864135,1735333840952,-500.0,0.00010467,2]
[346864136,1735333840962,-500.0,0.00010467,2]
[346864137,1735333840971,-821.29,0.00010467,2]
[346864138,1735333840981,-500.0,0.00010467,2]
[346864139,1735333840990,-500.0,0.00010467,2]
[346864140,1735333840998,-545.5,0.00010467,2]
[346864141,1735333841008,-500.0,0.00010467,2]
[346864142,1735333841017,-500.0,0.00010467,2]
[346864143,1735333841026,-2723.76,0.00010467,2]
[346864144,1735333841036,-500.0,0.00010467,2]
[346864145,1735333841045,-500.0,0.00010467,2]
[346864146,1735333841054,-784.68,0.00010467,2]
[346864147,1735333841063,-1428.35,0.00010467,2]
[346864148,1735333841073,-500.0,0.00010467,2]
[346864149,1735333841083,-500.0,0.00010467,2]
[346864150,1735333841092,-500.0,0.00010467,2]
[346864151,1735333841102,-500.0,0.00010467,2]
[346864152,1735333841112,-1619.97,0.00010467,2]
[346864153,1735333841121,-1608.63,0.00010467,2]
[346864154,1735333841131,-500.0,0.00010467,2]
[346864155,1735333841141,-785.93,0.00010467,2]
[346864156,1735333841150,-500.0,0.00010467,2]
[346864157,1735333841160,-500.0,0.00010467,2]
[346864158,1735333841169,-589.43,0.00010467,2]
[346864159,1735333841179,-500.0,0.00010467,2]
[346864160,1735333841189,-1275.52,0.00010467,2]
[346864161,1735333841202,-585.96,0.00010467,2]
[346864162,1735333841211,-687.4,0.00010467,2]
[346864163,1735333841221,-500.0,0.00010467,2]
[346864164,1735333841231,-622.11,0.00010467,2]
[346864165,1735333841241,-500.0,0.00010467,2]
[346864166,1735333841251,-2903.77,0.00010467,2]
[346864167,1735333841260,-500.0,0.00010467,2]
[346864168,1735333841270,-1157.58,0.00010467,2]
[346864169,1735333841280,-500.0,0.00010467,2]
[346864170,1735333841289,-826.18,0.00010467,2]
[346864171,1735333841298,-532.37,0.00010467,2]
[346864172,1735333841307,-500.0,0.00010467,2]
[346864173,1735333841317,-500.0,0.00010467,2]
[346864174,1735333841327,-1603.81,0.00010467,2]
[346864175,1735333841336,-500.0,0.00010467,2]
[346864176,1735333841346,-729.46,0.00010467,2]
[346864177,1735333841356,-500.0,0.00010467,2]
[346864178,1735333841365,-500.0,0.00010467,2]
[346864179,1735333841374,-500.0,0.00010467,2]
[346864180,1735333841383,-500.0,0.00010467,2]
[346864181,1735333841393,-533.46,0.00010467,2]
[346864182,1735333841402,-729.36,0.00010467,2]
[346864183,1735333841411,-642.37,0.00010467,2]
[346864184,1735333841421,-1977.1,0.00010467,2]
[346864185,1735333841431,-500.0,0.00010467,2]
[346864186,1735333841441,-1187.44,0.00010467,2]
[346864187,1735333841451,-500.0,0.00010467,2]
[346864188,1735333841460,-495.47015972,0.00010467,2]
[346864189,1735333841469,-1080.43,0.00010467,2]
[346864190,1735333841478,-849.72,0.00010467,2]
[346864191,1735333841487,-828.58,0.00010467,2]
[346864192,1735333841496,-917.73,0.00010467,2]
[346864193,1735333841505,-500.0,0.00010467,2]
[346864194,1735333841513,-500.0,0.00010467,2]
[346864195,1735333841522,-500.0,0.00010467,2]
[346864196,1735333841531,-500.0,0.00010467,2]
[346864197,1735333841540,-500.0,0.00010467,2]
[346864198,1735333841550,-5255.46,0.00010467,2]
[346864199,1735333841560,-500.0,0.00010467,2]
[346864200,1735333841571,-514.73,0.00010467,2]
[346864201,1735333841581,-9221.1,0.00010467,2]
[346864202,1735333841591,-161.40310338,0.00010467,2]
[346864203,1735333841600,-952.35,0.00010467,2]
[346864204,1735333841609,-500.0,0.00010467,2]
[346864205,1735333841619,-155.940262,0.00010467,2]
[346864206,1735333841628,-153.925539,0.00010467,2]
[346864207,1735333841638,-907.632065,0.00010467,2]
[346864208,1735333841647,-502.39369936,0.00010467,2]
[346864209,1735333841657,-500.0,0.00010467,2]
[346864210,1735333841667,-500.0,0.00010467,2]
[346864211,1735333841679,-736.632134,0.00010467,2]
[346864212,1735333841689,-1928.7,0.00010467,2]
[346864214,1735333841698,-500.0,0.00010467,2]
[346864216,1735333841707,-915.15,0.00010467,2]
[346864218,1735333841717,-500.0,0.00010467,2]
[346864219,1735333841726,-752.35,0.00010467,2]
[346864220,1735333841735,-1229.01,0.00010467,2]
[346864221,1735333841744,-500.0,0.00010467,2]
[346864222,1735333841753,-500.0,0.00010467,2]
[346864223,1735333841763,-500.0,0.00010467,2]
[346864224,1735333841772,-500.0,0.00010467,2]
[346864225,1735333841781,-1194.21,0.00010467,2]
[346864226,1735333841791,-500.0,0.00010467,2]
[346864227,1735333841800,-500.0,0.00010467,2]
[346864228,1735333841809,-500.0,0.00010467,2]
[346864229,1735333841819,-500.0,0.00010467,2]
[346864230,1735333841830,-628.8,0.00010467,2]
[346864231,1735333841839,-4279.55,0.00010467,2]
[346864232,1735333841849,-500.0,0.00010467,2]
[346864233,1735333841858,-1304.93,0.00010467,2]
[346864234,1735333841867,-708.98,0.00010467,2]
[346864235,1735333841877,-500.0,0.00010467,2]
[346864236,1735333841887,-1333.73,0.00010467,2]
[346864237,1735333841896,-500.0,0.00010467,2]
[346864238,1735333841905,-588.51,0.00010467,2]
[346864239,1735333841915,-500.0,0.00010467,2]
[346864240,1735333841924,-889.87,0.00010467,2]
[346864241,1735333841934,-500.0,0.00010467,2]
[346864242,1735333841943,-500.0,0.00010467,2]
[346864243,1735333841953,-500.0,0.00010467,2]
[346864244,1735333841962,-500.0,0.00010467,2]
[346864245,1735333841972,-500.0,0.00010467,2]
[346864246,1735333841981,-699.95,0.00010467,2]
[346864247,1735333841991,-500.0,0.00010467,2]
[346864248,1735333842000,-987.74,0.00010467,2]
[346864249,1735333842009,-500.0,0.00010467,2]
[346864250,1735333842018,-500.0,0.00010467,2]
[346864251,1735333842028,-500.0,0.00010467,2]
[346864252,1735333842038,-2143.85,0.00010467,2]
[346864253,1735333842047,-1308.29,0.00010467,2]
[346864254,1735333842057,-500.0,0.00010467,2]
[346864255,1735333842066,-538.09,0.00010467,2]
[346864256,1735333842076,-500.0,0.00010467,2]
[346864257,1735333842086,-500.0,0.00010467,2]
[346864258,1735333842096,-964.14,0.00010467,2]
[346864259,1735333842105,-520.39,0.00010467,2]
[346864260,1735333842115,-500.0,0.00010467,2]
[346864261,1735333842125,-6684.03,0.00010467,2]
[346864262,1735333842134,-500.0,0.00010467,2]
[346864263,1735333842144,-500.0,0.00010467,2]
[346864264,1735333842154,-754.23,0.00010467,2]
[346864265,1735333842163,-500.0,0.00010467,2]
[346864266,1735333842174,-500.0,0.00010467,2]
[346864267,1735333842183,-752.37,0.00010467,2]
[346864268,1735333842196,-968.17,0.00010467,2]
[346864269,1735333842206,-500.0,0.00010467,2]
[346864270,1735333842215,-500.0,0.00010467,2]
[346864271,1735333842225,-638.49,0.00010467,2]
[346864272,1735333842236,-9261.0,0.00010467,2]
[346864273,1735333842246,-1458.49,0.00010467,2]
[346864274,1735333842255,-500.0,0.00010467,2]
[346864275,1735333842265,-500.0,0.00010467,2]
[346864276,1735333842275,-500.0,0.00010467,2]
[346864277,1735333842285,-820.57,0.00010467,2]
[346864278,1735333842294,-500.0,0.00010467,2]
[346864279,1735333842303,-500.0,0.00010467,2]
[346864280,1735333842313,-618.48,0.00010467,2]
[346864281,1735333842323,-637.5,0.00010467,2]
[346864282,1735333842333,-500.0,0.00010467,2]
[346864283,1735333842342,-500.0,0.00010467,2]
[346864284,1735333842352,-500.0,0.00010467,2]
[346864285,1735333842362,-593.92,0.00010467,2]
[346864286,1735333842371,-1240.95,0.00010467,2]
[346864287,1735333842381,-500.0,0.00010467,2]
[346864288,1735333842391,-2126.31,0.00010467,2]
[346864289,1735333842400,-500.0,0.00010467,2]
[346864290,1735333842410,-1576.29,0.00010467,2]
[346864291,1735333842419,-654.58,0.00010467,2]
[346864292,1735333842429,-500.0,0.00010467,2]
[346864293,1735333842439,-500.0,0.00010467,2]
[346864294,1735333842448,-500.0,0.00010467,2]
[346864295,1735333842458,-500.0,0.00010467,2]
[346864296,1735333842468,-1443.29,0.00010467,2]
[346864297,1735333842477,-626.92,0.00010467,2]
[346864298,1735333842487,-500.0,0.00010467,2]
[346864299,1735333842496,-645.12,0.00010467,2]
[346864300,1735333842506,-3885.14,0.00010467,2]
[346864301,1735333842516,-1912.68,0.00010467,2]
[346864302,1735333842525,-500.0,0.00010467,2]
[346864303,1735333842535,-500.0,0.00010467,2]
[346864304,1735333842544,-500.0,0.00010467,2]
[346864305,1735333842554,-1047.27,0.00010467,2]
[346864306,1735333842563,-860.28,0.00010467,2]
[346864307,1735333842574,-1313.64,0.00010467,2]
[346864308,1735333842584,-639.33,0.00010467,2]
[346864309,1735333842594,-1040.6,0.00010467,2]
[346864310,1735333842604,-500.0,0.00010467,2]
[346864311,1735333842615,-500.0,0.00010467,2]
[346864312,1735333842624,-500.0,0.00010467,2]
[346864313,1735333842634,-150.0,0.00010467,2]
[346864314,1735333842644,-2069.87,0.00010467,2]
[346864315,1735333842653,-500.0,0.00010467,2]
[346864316,1735333842663,-1715.23,0.00010467,2]
[346864317,1735333842673,-151.0,0.00010467,2]
[346864318,1735333842682,-151.0,0.00010467,2]
[346864319,1735333842692,-500.0,0.00010467,2]
[346864320,1735333842702,-668.27,0.00010467,2]
[346864321,1735333842711,-500.0,0.00010467,2]
[346864322,1735333842721,-500.0,0.00010467,2]
[346864323,1735333842731,-500.0,0.00010467,2]
[346864324,1735333842741,-500.0,0.00010467,2]
[346864325,1735333842752,-594.45,0.00010467,2]
[346864326,1735333842762,-572.29,0.00010467,2]
[346864327,1735333842772,-696.98,0.00010467,2]
[346864328,1735333842782,-958.75,0.00010467,2]
[346864329,1735333842791,-557.12,0.00010467,2]
[346864330,1735333842800,-500.0,0.00010467,2]
[346864331,1735333842811,-500.0,0.00010467,2]
[346864333,1735333842821,-500.0,0.00010467,2]
[346864334,1735333842830,-3289.37,0.00010467,2]
[346864335,1735333842841,-618.67,0.00010467,2]
[346864336,1735333842850,-500.0,0.00010467,2]
[346864337,1735333842859,-500.0,0.00010467,2]
[346864338,1735333842869,-228.66734957,0.00010467,2]
[346864339,1735333842879,-500.0,0.00010467,2]
[346864340,1735333842888,-339.47651481,0.00010467,2]
[346864341,1735333842897,-500.0,0.00010467,2]
[346864343,1735333842907,-500.0,0.00010467,2]
[346864345,1735333842917,-500.0,0.00010467,2]
[346864347,1735333842926,-1381.48,0.00010467,2]
[346864348,1735333842936,-500.0,0.00010467,2]
[346864349,1735333842945,-151.0,0.00010467,2]
[346864351,1735333842955,-500.0,0.00010467,2]
[346864355,1735333842964,-500.0,0.00010467,2]
[346864359,1735333842974,-1819.16,0.00010467,2]
[346864361,1735333842983,-500.0,0.00010467,2]
[346864364,1735333842993,-1798.73,0.00010467,2]
[346864365,1735333843002,-690.69,0.00010467,2]
[346864367,1735333843011,-500.0,0.00010467,2]
[346864368,1735333843021,-500.0,0.00010467,2]
[346864370,1735333843031,-956.87,0.00010467,2]
[346864372,1735333843040,-1927.16,0.00010467,2]
[346864373,1735333843049,-500.0,0.00010467,2]
[346864374,1735333843059,-500.0,0.00010467,2]
[346864375,1735333843068,-3187.13,0.00010467,2]
[346864376,1735333843078,-1016.33,0.00010467,2]
[346864378,1735333843087,-500.0,0.00010467,2]
[346864379,1735333843097,-500.0,0.00010467,2]
[346864380,1735333843106,-711.29,0.00010467,2]
[346864381,1735333843115,-1618.5,0.00010467,2]
[346864382,1735333843126,-1757.99,0.00010467,2]
[346864384,1735333843135,-252.37,0.00010468,2]
[346864385,1735333843146,-151.0,0.00010468,2]
[346864386,1735333843155,-500.0,0.00010468,2]
[346864387,1735333843165,-500.0,0.00010468,2]
[346864388,1735333843175,-500.0,0.00010468,2]
[346864389,1735333843184,-500.0,0.00010468,2]
[346864390,1735333843196,-440.93691722,0.00010468,2]
[346864391,1735333843206,-441.01548446,0.00010468,2]
[346864392,1735333843215,-500.0,0.00010469,2]
[346864393,1735333843225,-151.0,0.00010469,2]
[346864394,1735333843235,-615.86,0.00010469,2]
[346864395,1735333843244,-5880.02,0.00010469,2]
[346864396,1735333843254,-24313.12196161,0.00010469,2]
[346864406,1735333843903,-752.655,0.00010469,2]
[346864407,1735333843915,-2329.75303839,0.00010469,2]
[346864408,1735333843925,-500.0,0.00010469,2]
[346864409,1735333843935,-3648.82,0.00010469,2]
[346864410,1735333843944,-117.46351161,0.00010469,2]
[346864411,1735333843956,-1805.87648839,0.00010469,2]
[346864412,1735333843966,-500.0,0.00010469,2]
[346864413,1735333843975,-629.44013748,0.00010469,2]
[346864414,1735333843987,-1138.16986252,0.00010469,2]
[346864415,1735333843997,-2934.07,0.00010469,2]
[346864416,1735333844007,-500.0,0.00010469,2]
[346864417,1735333844016,-5208.46013748,0.00010469,2]
[346864418,1735333844028,-2593.591,0.00010469,2]
[346864419,1735333844039,-6983.09034948,0.00010469,2]
[346864420,1735333844051,-544.99900001,0.00010469,2]
[346864421,1735333844062,-375.13799864,0.00010469,2]
[346864422,1735333844075,-1085.54122135,0.00010469,2]
[346864423,1735333844087,-4168.12029304,0.00010469,2]
[346864424,1735333844097,-844.32,0.00010469,2]
[346864425,1735333844107,-3500.23,0.00010469,2]
[346864426,1735333844117,-500.0,0.00010469,2]
[346864427,1735333844127,-2232.11,0.00010469,2]
[346864428,1735333844136,-1580.08,0.00010469,2]
[346864429,1735333844146,-1191.32,0.00010469,2]
[346864430,1735333844155,-4379.48,0.00010469,2]
[346864431,1735333844165,-2001.74,0.00010469,2]
[346864432,1735333844175,-4181.39,0.00010469,2]
[346864433,1735333844184,-1913.9,0.00010469,2]
[346864434,1735333844195,-700.5,0.00010469,2]
[346864435,1735333844206,-2465.58,0.00010469,2]
[346864436,1735333844215,-1460.96,0.00010469,2]
[346864437,1735333844225,-2801.58,0.00010469,2]
[346864438,1735333844235,-1442.83,0.00010469,2]
[346864439,1735333844244,-744.76705386,0.00010469,2]
[346864440,1735333844255,-532.5,0.00010469,2]
[346864441,1735333844273,-3140.32294614,0.00010469,2]
[346864442,1735333844284,-1326.76089226,0.00010469,2]
[346864443,1735333844296,-320.27910774,0.00010469,2]
[346864444,1735333844306,-248.23,0.0001047,2]
[346864445,1735333844315,-1136.20222984,0.00010475,2]
[346864446,1735333844327,-1057.0,0.00010522,2]
[346864447,1735333844337,-151.0,0.00010561,2]
[346864448,1735333844348,-595.41,0.00010601,2]
[346864449,1735333844358,-260.0,0.0001065,2]